Cogmind - Beta 12 @@@ ROGUE MODE // 2023.11.10 @ 01:01:01 Player: FrostySpirit Result: Destroyed by G-34 Mercenary with Small Laser Performance ------------- Evolutions (1) 500 Regions Visited (2) 400 Robots Destroyed (0) 0 Value Destroyed (0) 0 Prototype IDs (0) 0 Alien Tech Used (0) 0 Bonus (200) 200 TOTAL SCORE: 1100 Bonus ------- Pacifist 200 Cogmind --------- Core Integrity 0/400 Matter 258/300 Energy 98/100 System Corruption 0% Temperature Cool (6) Movement Core (50) Location -9/Materials Parts ------- > --- POWER (1) -------- (None) > --- PROPULSION (3) --- (None) > --- UTILITY (3) ------ Power Shielding > --- WEAPON (2) ------- (None) > --- INVENTORY (5) ---- Ion Engine Structural Scanner Targeting Computer Medium Laser Grenade Launcher Peak State ------------ > --- POWER ------------ Light Ion Engine > --- PROPULSION ------- Compact Wheel Compact Wheel > --- UTILITY ---------- Small Storage Unit Structural Scanner Power Shielding > --- WEAPON ----------- Light Assault Rifle Mining Laser > --- INVENTORY -------- Ion Engine Structural Scanner Targeting Computer Medium Laser Assault Rifle Grenade Launcher [Rating: 8] Favorites ----------- Power Light Ion Engine Engine Light Ion Engine Propulsion Compact Wheel Wheel Compact Wheel Utility Small Storage Unit Device Structural Scanner Storage Small Storage Unit Protection Power Shielding Weapon Light Assault Rifle Energy Gun Medium Laser Ballistic Gun Light Assault Rifle Special Weapon Mining Laser Build | -11 -10 -9 ------- Run | Jun Mat Mat Slots Evolved 2 | . . 2 Power . | . . . Propulsion 1 | . . 1 Utility 1 | . . 1 Weapon . | . . . Parts Attached 9 | 6 2 1 Power 1 | 1 . . Engine 1 | 1 . . Core . | . . . Reactor . | . . . Propulsion 2 | 2 . . Treads . | . . . Leg . | . . . Wheel 2 | 2 . . Hover . | . . . Flight . | . . . Utility 3 | 1 1 1 Device 1 | . 1 . Storage 1 | 1 . . Processor . | . . . Hackware . | . . . Protection 1 | . . 1 Artifact . | . . . Weapon 3 | 2 1 . Energy Gun 1 | 1 . . Energy Cannon . | . . . Ballistic Gun 1 | 1 . . Ballistic Cannon . | . . . Launcher . | . . . Special Weapon 1 | . 1 . Impact Weapon . | . . . Slashing Weapon . | . . . Piercing Weapon . | . . . Special Melee Weapon . | . . . Unidentified Prototypes . | . . . Parts Lost 6 | . . 6 Power 1 | . . 1 Propulsion 2 | . . 2 Utility 1 | . . 1 Weapon 2 | . . 2 Highest Loss Streak 6 | . . 6 To Critical Strikes 1 | . . 1 Average Slot Usage (%) 92 | . 97 79 Engine 12 | . 14 10 Wheel 25 | . 28 20 Device 11 | . 11 10 Storage 12 | . 14 10 Protection 2 | . . 10 Energy Gun 8 | . 11 . Ballistic Gun 12 | . 14 10 Special Weapon 4 | . 2 9 Naked Turns . | . . . Heaviest Build 12 | 11 12 12 Greatest Support 32 | 32 32 32 Greatest Overweight (x) 3 | . 3 2 Average Overweight (x) . | . . . Largest Inventory Capacity 8 | 8 8 8 Average Capacity 7 | 7 8 7 Most Carried 7 | 4 7 6 Average Carried 5 | 1 5 5 Final Capacity 8 | 8 8 5 Final Carried 6 | 4 6 5 Class Distribution -------------------- 100% | Mutant Dominant Class ---------------- Mutant | -10/Materials Mutant | -9/Materials Resources | -11 -10 -9 ----------- Run | Jun Mat Mat Matter Collected 218 | 218 . . Remotely . | . . . Salvage Created . | . . . Parts . | . . . Haulers Intercepted . | . . . Recyclers Shooed . | . . . Parts Field Recycled . | . . . Retrieved Matter . | . . . Parts Self-Destructed . | . . . Prevented . | . . . Kills | -11 -10 -9 ------- Run | Jun Mat Mat Combat Hostiles Destroyed . | . . . Classes Destroyed . | . . . Best Kill Streak . | . . . Combat Bots Only . | . . . Max Kills in Single Turn . | . . . Gunslinging . | . . . Exploded . | . . . Melee . | . . . Uniques/NPCs Destroyed . | . . . Combat | -11 -10 -9 -------- Run | Jun Mat Mat Damage Taken 750 | . 31 719 Core 415 | . 10 405 Absorbed by Shields . | . . . Redirected to Shielding 15 | . . 15 Core Remaining (%) 98 | 100 96 . Volleys Fired 1 | . 1 . Largest 1 | . 1 . Hottest 100 | . 100 . Shots Fired 1 | . 1 . Gun . | . . . Cannon . | . . . Launcher . | . . . Special 1 | . 1 . Kinetic . | . . . Thermal 1 | . 1 . Explosive . | . . . Electromagnetic . | . . . Robot Hit Streak . | . . . Robot Miss Streak . | . . . Penetration Max . | . . . Secondary Targets . | . . . Shots Hit Robots . | . . . Core Hits . | . . . Critical Kills . | . . . Critical Parts Destroyed . | . . . Critical Strikes . | . . . Melee Attacks . | . . . Impact . | . . . Slashing . | . . . Piercing . | . . . Sneak Attacks . | . . . Combat Hostiles . | . . . Follow-up Attacks . | . . . Damage Inflicted . | . . . Guns . | . . . Cannons . | . . . Explosions . | . . . Melee . | . . . Ramming . | . . . Kinetic . | . . . Thermal . | . . . Explosive . | . . . Electromagnetic . | . . . Impact . | . . . Slashing . | . . . Piercing . | . . . Highest Corruption 3 | . 3 . Average Corruption 2 | . 2 . Corruption Purged . | . . . Corruption Blocked . | . . . Effects 1 | . 1 . Message Errors 1 | . 1 . Overload Shots . | . . . Overflow Damage . | . . . Projectiles . | . . . Explosions . | . . . Melee . | . . . Knockbacks . | . . . Impact . | . . . Kinetic . | . . . Secondary . | . . . Self-Inflicted Damage . | . . . Shots . | . . . Rammed . | . . . Targets Rammed . | . . . Kicked . | . . . Crushed . | . . . Highest Temperature 26 | . 26 . Average Temperature 12 | . 12 . Received Heat Transfer 126 | . 18 108 Siege Activations . | . . . Robots Corrupted . | . . . Combat Hostiles . | . . . Parts Fried . | . . . Impact Corruptions . | . . . Robots Melted . | . . . Combat Hostiles . | . . . Parts Melted . | . . . Heat Transferred . | . . . Parts Sabotaged . | . . . Parts Stolen . | . . . Parts Stripped . | . . . Power Chain Reactions . | . . . Missiles Intercepted . | . . . Alert | -11 -10 -9 ------- Run | Jun Mat Mat Peak Influence 5 | . 4 5 Initial 1 | . . 1 Average . | . . . Maximum Alert Level . | . . . Low Security (%) 100 | 100 100 100 Level 1 . | . . . Level 2 . | . . . Level 3 . | . . . Level 4 . | . . . Level 5 . | . . . High Security . | . . . Max Security . | . . . Squads Dispatched 1 | . . 1 Investigation 1 | . . 1 Extermination . | . . . Reinforcement . | . . . Assault . | . . . Garrison . | . . . Intercept . | . . . Searches Triggered . | . . . Construction Impeded . | . . . Haulers Reinforced . | . . . Active Scanning Responses . | . . . Cargo Convoy Interrupts . | . . . Stealth | -11 -10 -9 --------- Run | Jun Mat Mat Distress Signals . | . . . Communications Jammed . | . . . Distress Signals . | . . . Times Spotted 16 | . 1 15 Peak Tracking Total 15 | . 1 15 Tactical Retreats . | . . . Traps | -11 -10 -9 ------- Run | Jun Mat Mat Traps Triggered 2 | . 2 . Indirectly . | . . . Trap Hack Attempts . | . . . Triggered . | . . . Disarmed . | . . . Reprogrammed . | . . . Reused . | . . . Traps Extracted . | . . . Installed . | . . . Triggered . | . . . Machines | -11 -10 -9 ---------- Run | Jun Mat Mat Machines Disabled . | . . . Max in Single Turn . | . . . Machines Repaired . | . . . Machines Sabotaged . | . . . Overloaded Fab Kills . | . . . Hacking | -11 -10 -9 --------- Run | Jun Mat Mat Machines Accessed 6 | . 5 1 Terminals 6 | . 5 1 Fabricators . | . . . Repair Stations . | . . . Recycling Units . | . . . Scanalyzers . | . . . Garrison Access . | . . . Total Hacks 14 | . 11 3 Successful 3 | . 3 . Failed 11 | . 8 3 Catastrophic 4 | . 2 2 Database Lockouts . | . . . Manual 14 | . 11 3 Terminals 14 | . 11 3 Fabricators . | . . . Repair Stations . | . . . Recycling Units . | . . . Scanalyzers . | . . . Garrison Access . | . . . Terminal Hacks . | . . . Fabricator Hacks . | . . . Repair Station Hacks . | . . . Recycling Unit Hacks . | . . . Scanalyzer . | . . . Garrison Access Hacks . | . . . Unauthorized Hacks 3 | . 3 . Terminals 3 | . 3 . Track 3 | . 3 . Fabricators . | . . . Repair Stations . | . . . Recycling Units . | . . . Scanalyzers . | . . . Garrison Access . | . . . Data Cores Recovered . | . . . Used . | . . . Hacking Detections 6 | . 5 1 Full Trace Events 2 | . 1 1 Feedback Events . | . . . Feedback Blocked . | . . . Robot Schematics Acquired . | . . . Robots Built . | . . . Authchips . | . . . Time . | . . . Total Robot Build Rating . | . . . Part Schematics Acquired . | . . . Parts Built . | . . . Authchips . | . . . Time . | . . . Total Part Build Rating . | . . . Parts Repaired . | . . . Time . | . . . Parts Recycled . | . . . Recycled Matter . | . . . Retrieved Matter . | . . . Retrieved Components . | . . . Parts Scanalyzed . | . . . Part Schematics Acquired . | . . . Parts Damaged . | . . . Bothacking | -11 -10 -9 ------------ Run | Jun Mat Mat Used RIF Installer . | . . . Robots Hacked . | . . . Non-combat . | . . . Combat . | . . . Robot Hacks Applied . | . . . Relay Couplers Released . | . . . Fabnet Peak Effective % . | . . . Robots Rewired . | . . . Allies Hacked . | . . . Hacks Repelled . | . . . Allies | -11 -10 -9 -------- Run | Jun Mat Mat Total Allies . | . . . Largest Group . | . . . Highest-Rated Group . | . . . Highest-Rated Ally . | . . . Total Orders . | . . . Ally Attacks . | . . . Total Damage . | . . . Kills . | . . . Allies Corrupted . | . . . Allies Melted . | . . . Intel | -11 -10 -9 ------- Run | Jun Mat Mat Robot Analysis Total . | . . . Derelict Logs Recovered . | . . . Drone Launches . | . . . Drone Recoveries . | . . . Exploration | -11 -10 -9 ------------- Run | Jun Mat Mat Turns Passed 482 | 73 301 108 Spaces Moved 411 | 64 252 95 Core 20 | 10 1 9 Treads . | . . . Legs . | . . . Wheels 391 | 54 251 86 Hover . | . . . Flight . | . . . Fastest Speed 50 | 50 100 50 Average Speed 98 | 92 100 96 Slowest Speed 200 | 100 200 150 Overloaded Moves . | . . . Propulsion Burnouts . | . . . Robots Hopped . | . . . Cave-ins Triggered . | . . . Exploration Rate (%) 15 | 4 27 15 Regions Visited 2 Branch Regions . Pre-discovered Areas . | . . . Known Exits Taken . | . . . Unknown Exits Taken 2 | 1 1 . Scrap Searched . | . . . Spaces Dug 1 | . 1 . Terrain Destroyed 1 | . 1 . Melee . | . . . Projectile 1 | . 1 . AOE . | . . . Terrain Rammed . | . . . Walls Destroyed . | . . . Machines Disabled . | . . . Actions | -11 -10 -9 --------- Run | Jun Mat Mat Total 483 | 75 297 111 Wait 52 | 1 37 14 Move 409 | 63 251 95 Hop . | . . . Pick Up 9 | 5 4 . Fast Attach 7 | 5 1 1 Attach 1 | 1 . . Detach . | . . . Swap 1 | . 1 . Drop 3 | . 2 1 Fire 1 | . 1 . Melee . | . . . Ram . | . . . Kick . | . . . Crush . | . . . Escape Stasis . | . . . Rewire . | . . . Trap . | . . . Miscellaneous . | . . . Route ------- -11/Junkyard -10/Materials -9/Materials (discovered 1 exit: [*Min]) History --------- Turn | Location | Event 14 | -11/Junkyard | Discovered new exit (range 16) 74 | -11/Junkyard | Entered Materials 305 | -10/Materials | Build established: Mutant 369 | -10/Materials | Discovered new exit (range 7) 375 | -10/Materials | Entered another Materials area 375 | -9/Materials | Evolved 2 slots: Propulsion x1, Utility x1 476 | -9/Materials | Discovered new exit (range 15) 479 | -9/Materials | Core integrity fell below 50% 481 | -9/Materials | Core integrity fell below 20% 483 | -9/Materials | Destroyed by G-34 Mercenary with Small Laser Last Messages --------------- Testing... Tracking enabled and active. 00369_ EXIT=FOUND PARAMETERS=PROPULSION+1,UTILITY+1 LOCATION=UNKNOWN GOAL=ESCAPE 00389_ Acquired Power Shielding. 00466_ Critical hit (Destroy). 00466_ Mining Laser destroyed. 00466_ K-01 Serf collects debris. 00472_ Connecting with Terminal... 00472_ Current location identified: Materials 00472_ ALERT: Suspicious activity at Terminal M001. Dispatching Investigation squad. 00472_ Lgt. Ion Engine destroyed. 00472_ Lgt. Assault Rifle destroyed. 00476_ EXIT=FOUND 00476_ Com. Wheel destroyed. 00478_ Structural Scanner destroyed. 00479_ Dropped Sml. Storage Unit. Map ----- +----------------------------------------------------+ | ?????????????????????????????????????????????? ##? | | ?????????????????????????????????????????????? ##? | | ???????????????????????????????? ########## ##? | | ????????????????????????????????############## ##? | | ????????????????????????????????## #### ##? | | ????????????????????????????????## """ #### ##? | | ????????????????????????????????## """ #### ##? | | ???????????????????????????? ##### """ #### ##? | | ???????????????????????????? ##### ## ### | | ???????????????????????????? # # """ ## ### | | ???????????????????????????? # + """ + | | ???????????????????????????? + # """ ## | | ???????????????????????????? # # ## | | ????????????????????????????## ##+######## ## | | ????????????????????????????## ###### ## | | ?????????????????????????##### ##??## # | | ????????????????????????###### ###### # | | ????????????????????????###! ###### # | | ????????????????????????##! # | | ????????????????????????##! # | | ????????????????????????##! T + | | ????????????????????????##! # | | ????????????????#"""????###! # | | ????????????????#" |"!??###### !!! # | | ????????????????#" "#####s g[ !!! ## | | ?????????? u k @ ! !! | | ?????????? < a l # | | ?????????? g g # | | ??????????? ##### ##### t g ### ## | | ????????????????###############+######### ### ## | | ??????????????????######???# ##### ##???? | | ???????????????????????????????? ?????? ##???? | | ????????????????????????????????? #?????? ##???? | | ?????????????????????????????????? #?????? #???? | | ??????????????????????????????????? #????????????? | | ????????????????????????????????????#????????????? | | ?????????????????????????????????????????????????? | | ?????????????????????????????????????????????????? | | ?????????????????????????????????????????????????? | | ?????????????????????????????????????????????????? | | ?????????????????????????????????????????????????? | | ?????????????????????????????????????????????????? | | ?????????????????????????????????????????????????? | | ?????????????????????????????????????????????????? | | ?????????????????????????????????????????????????? | | ?????????????????????????????????????????????????? | | ?????????????????????????????????????????????????? | | ?????????????????????????????????????????????????? | | ?????????????????????????????????????????????????? | | ?????????????????????????????????????????????????? | +----------------------------------------------------+ Best States ------------- Heat Dissipation 28 Energy Generation 10 Energy Capacity 125 Matter Stores 258 Matter Capacity 300 Sight Range 16 Terrain Scan Density 10 Power Shielding 33 Evasion (%) 40 Item Schematics ----------------- None Robot Schematics ------------------ None Fabricated ------------ Nothing Alien Tech Used ----------------- None Achievements -------------- None Challenges ------------ None Game ------ Seed MobileMinesnifferInterpreter Manual? 0 Play Time 00:08:36 Cumulative 32.2 hours Start 2023.11.10 @ 00:53:38 End 2023.11.10 @ 01:01:01 Sessions 1 Manual Loads 0 Difficulty Rogue Special Mode None Game No. 54 Rogue 54 Adventurer 0 Explorer 0 Win Type - Total 0 Types 0/0/0/0/0/0/0/0/0 Lore% 24 Gallery% 38 Achievement% 26 Wizard Run 0 Options --------- ASCII 0 Keyboard 1 Movement Numpad Keybinds 0 Fullscreen 1 Font 18/TerminusBold Map View 76x50 Tactical HUD 1 Map Filters NONE Filters NONE Steam 1 RUN: f80ae351-ea0a-45c7-a7bc-a68b1b3b4cda